bitfinex/quotes_ETHUSD_20251215
["timestamp","ask_amount","ask_price","bid_price","bid_amount"]
[1765827643866,0.4779,2951.4,2951.0,0.002]
[1765827644070,0.1559,2951.6,2951.0,0.002]
[1765827644250,0.6959,2951.6,2951.0,0.002]
[1765827644642,1.1738,2951.6,2951.0,0.002]
[1765827645038,0.6959,2951.6,2951.0,0.002]
[1765827645472,0.07156489,2952.1,2951.5,0.4688]
[1765827645686,0.54,2952.0,2951.5,0.4688]
[1765827645843,0.54,2952.0,2951.6,6.7759859]
[1765827646746,0.54,2952.0,2951.6,10.16397885]
[1765827647147,0.54,2952.0,2951.6,6.7759859]
[1765827647758,1.0179,2952.0,2951.5,6.77621548]
[1765827648074,0.1832,2951.9,2951.5,6.77621548]
[1765827648275,0.6611,2951.9,2951.5,6.77621548]
[1765827648480,0.4576,2951.6,2951.4,3.38816221]
[1765827648774,0.1559,2951.5,2951.4,3.38822253]
[1765827648984,0.1559,2951.5,2951.0,0.002]
[1765827648985,0.6338,2951.5,2951.3,3.38830747]
[1765827649346,0.4779,2951.5,2951.4,3.38822253]
[1765827649550,0.1832,2951.9,2951.1,3.38854853]
[1765827649551,0.405504,2951.8,2951.1,3.38854853]
[1765827649765,0.4576,2951.3,2951.2,3.38836397]
[1765827650850,0.4576,2951.3,2951.0,0.002]
[1765827652373,0.4576,2951.1,2951.0,0.002]
[1765827653184,0.54,2951.4,2951.0,0.4708]
[1765827653368,0.54,2951.4,2951.0,0.9664]
[1765827653572,0.54,2951.4,2951.1,0.1845]
[1765827653875,0.54,2951.4,2951.0,0.9664]
[1765827653876,0.4576,2951.1,2951.0,0.002]
[1765827655988,0.9355,2951.1,2951.0,0.002]
[1765827657790,1.341004,2951.1,2951.0,0.002]
[1765827661068,1.341004,2951.1,2950.9,0.002]
[1765827661069,0.405504,2951.0,2950.9,0.002]
[1765827661269,1.61977929,2951.0,2950.9,0.002]
[1765827661598,4.4279858,2951.0,2950.9,0.002]
[1765827661767,0.405504,2950.8,2950.3,0.002]
[1765827661980,0.649,2950.4,2950.3,0.002]
[1765827662379,0.405504,2950.3,2950.2,0.002]
[1765827662589,1.2238748,2950.3,2950.2,0.002]
[1765827663089,0.405504,2950.0,2949.8,0.002]
[1765827663409,4.68084942,2949.9,2949.8,0.002]
[1765827663596,0.842004,2949.8,2948.8,6.78237549]
[1765827663804,0.1538,2949.2,2948.8,6.78237549]
[1765827663982,0.6938,2949.2,2948.8,6.78237549]
[1765827664327,1.576004,2949.2,2947.8,4.03722944]
[1765827664512,1.576004,2949.2,2948.3,3.39171715]
[1765827664513,0.405504,2948.8,2948.3,3.39171715]
[1765827664683,0.54,2948.7,2947.9,3.39220494]
[1765827665022,1.0167,2948.7,2948.5,3.39146015]
[1765827665177,1.0167,2948.7,2948.1,6.78403038]
[1765827665382,0.54,2948.7,2948.1,6.78403038]
[1765827666509,0.1944,2949.1,2948.6,0.4867]
[1765827666817,0.54,2949.1,2948.6,0.4867]
[1765827667227,0.2444,2949.9,2949.0,0.4867]
[1765827667526,0.405504,2949.7,2949.0,0.4867]
[1765827667816,0.4767,2949.8,2949.1,0.1827]
[1765827668018,0.1944,2949.9,2949.2,0.0339075]
[1765827668223,0.7344,2949.9,2949.1,0.6431]
[1765827668423,1.2111,2949.9,2949.1,0.6431]
[1765827668603,0.6711,2949.9,2949.1,0.6431]
[1765827668922,0.54,2949.8,2949.2,0.1709133]
[1765827669083,0.54,2949.8,2949.0,1.06603299]
[1765827669084,1.0167,2949.8,2949.0,1.06603299]
[1765827669421,1.0167,2949.8,2949.1,10.172595]
[1765827669672,0.54,2949.8,2949.1,10.815695]
[1765827669845,0.54,2949.8,2949.1,14.20656]
[1765827670034,0.7344,2949.9,2949.1,14.20656]
[1765827670235,0.7344,2949.9,2949.2,1.5272593]
[1765827670431,0.1944,2949.9,2949.2,1.5272593]
[1765827670638,0.1944,2949.9,2949.2,1.9876593]
[1765827670639,0.54,2949.9,2949.2,1.9876593]
[1765827671038,0.7344,2949.9,2949.2,1.5272593]
[1765827671265,1.2111,2949.9,2949.3,6.78127012]
[1765827671469,0.4718,2949.2,2949.1,3.39080092]
[1765827671664,1.0128,2949.2,2949.1,3.39080092]
[1765827671994,1.4895,2949.2,2949.1,3.39080092]
[1765827672381,1.4895,2949.2,2948.9,3.39105879]
[1765827672659,1.4895,2949.2,2948.3,3.97224458]
[1765827672660,1.0177,2949.2,2948.8,3.39118019]
[1765827672867,0.882204,2949.1,2948.9,3.39104106]
[1765827673065,0.882204,2949.1,2948.7,3.39126117]
[1765827673066,0.5787,2948.9,2948.7,3.39126117]
[1765827673294,0.512404,2948.9,2948.0,3.75173155]
[1765827673593,0.4718,2948.6,2948.0,3.75173155]
[1765827673882,1.0128,2948.6,2948.1,10.17604557]
[1765827674085,1.0128,2948.6,2948.1,10.35874557]
[1765827674292,0.541,2948.6,2948.1,11.75173796]
[1765827676299,0.4767,2948.5,2948.1,6.78403038]
[1765827677506,0.541,2948.4,2948.0,0.002]
[1765827677803,0.541,2948.4,2948.1,0.1827]
[1765827678404,0.541,2948.4,2948.0,0.002]
[1765827680097,0.541,2948.4,2948.1,0.1827]
[1765827681156,0.1954,2949.1,2948.3,0.4867]
[1765827681454,0.405504,2949.0,2948.4,10.17501015]
[1765827681668,0.001,2949.1,2949.0,0.4867]
[1765827682094,0.20229,2949.1,2949.0,0.9471]
[1765827682287,0.20229,2949.1,2949.0,0.4867]
[1765827682880,0.20229,2949.1,2949.0,0.9471]
[1765827683074,0.20229,2949.1,2949.0,0.4867]
[1765827683387,0.20229,2949.1,2949.0,4.33807999]
[1765827683759,0.20229,2949.1,2949.0,5.11099664]
[1765827683965,0.20229,2949.1,2949.0,5.69147193]
[1765827684165,1e-08,2949.1,2949.0,5.69147193]
[1765827687803,1e-08,2949.1,2949.0,4.33807999]
[1765827687997,0.00100001,2949.1,2949.0,4.33807999]
[1765827688402,0.00100001,2949.1,2949.0,4.91855528]
[1765827689698,1e-08,2949.1,2949.0,5.45955528]
[1765827689899,0.001,2949.8,2949.3,0.58047529]
[1765827690200,0.001,2949.8,2949.7,0.6694]
[1765827690712,0.001,2949.8,2949.7,1.1523]
[1765827691879,0.001,2949.8,2949.7,13.87612733]
[1765827692083,0.001,2949.8,2949.7,5.12295056]
[1765827692824,0.001,2949.8,2949.7,4.05957527]
[1765827693115,0.001,2949.8,2949.7,3.84727527]
[1765827693318,0.001,2949.8,2949.7,4.31377527]
[1765827693898,0.001,2949.8,2949.7,5.08418114]
[1765827694336,0.001,2949.8,2949.7,5.66465643]
[1765827694611,0.001,2950.3,2949.8,0.58047529]
[1765827694816,0.001,2950.3,2950.2,0.6308]
[1765827695319,0.001,2950.3,2950.2,1.0973]
[1765827695814,0.001,2950.3,2950.2,0.6308]
[1765827695996,0.001,2950.3,2950.2,4.0204007]
[1765827696197,0.001,2950.3,2950.2,3.3896007]
[1765827696402,0.001,2950.3,2950.2,3.8467007]
[1765827696699,0.001,2950.3,2950.2,4.3132007]
[1765827698690,0.001,2950.3,2950.2,3.8467007]
[1765827699720,0.9529,2950.3,2950.0,3.3897617]
[1765827699900,0.1148,2950.2,2950.0,3.3897617]
[1765827700104,0.001,2950.3,2949.7,6.78035054]
[1765827700818,0.001,2950.3,2950.2,0.6308]
[1765827701197,0.001,2950.3,2950.2,1.0973]
[1765827701615,0.001,2950.3,2950.2,1.67777529]
[1765827701920,0.52073346,2951.0,2950.7,0.58047529]
[1765827702220,0.52073346,2951.0,2950.9,0.4571]
[1765827702421,0.52073346,2951.0,2950.9,1.75178982]
[1765827703318,0.001,2951.3,2951.2,9.33365206]
[1765827703503,0.001,2952.7,2951.4,0.4571]
[1765827703827,0.001,2952.7,2952.1,0.6398]
[1765827704039,0.001,2952.7,2952.1,4.02721912]
[1765827704242,0.001,2952.7,2952.1,5.23519446]
[1765827704452,0.001,2952.7,2952.1,5.81566975]
[1765827704738,0.001,2952.9,2952.6,0.4571]
[1765827704899,0.001,2952.9,2952.8,0.4571]
[1765827705301,0.001,2952.9,2952.8,0.9236]
[1765827706529,0.001,2953.4,2952.8,13.64386815]
[1765827706730,0.001,2953.4,2953.3,1.22547529]
[1765827707230,0.001,2953.4,2953.3,1.69197529]
[1765827708434,0.001,2953.4,2953.3,4.49754273]
[1765827709421,0.001,2953.4,2953.3,5.07801802]
[1765827712035,0.001,2953.4,2953.3,4.49754273]
[1765827713202,0.001,2953.4,2953.2,3.38612758]
[1765827713408,0.001,2953.4,2953.3,3.38604273]
[1765827713841,0.001,2953.4,2953.3,3.84314273]
[1765827714421,0.001,2953.4,2953.3,3.38604273]
[1765827714903,0.001,2953.4,2953.3,3.84314273]
[1765827715105,0.001,2953.4,2953.2,3.38612887]
[1765827715315,0.001,2953.4,2952.9,3.57431769]
[1765827715520,0.001,2953.4,2953.0,3.38634484]
[1765827715814,0.001,2953.4,2953.1,3.38619923]
[1765827716137,0.001,2953.4,2953.3,0.4571]
[1765827716509,0.001,2953.4,2953.3,0.9236]
[1765827717542,0.001,2953.4,2953.3,4.30964273]
[1765827720828,0.9529,2953.4,2952.6,3.85]
[1765827721145,0.9529,2953.4,2953.1,3.38624723]
[1765827721146,0.1385,2953.3,2953.1,3.38624723]
[1765827721319,0.1385,2953.3,2952.9,3.38649908]
[1765827721320,0.1385,2953.3,2953.0,3.38633469]
[1765827721746,1.0247,2953.4,2952.3,0.1879]
[1765827721747,0.541,2953.4,2952.7,6.77346156]
[1765827721936,0.001,2953.4,2953.3,0.4579]
[1765827722338,0.001,2953.4,2953.3,0.911]
[1765827722715,0.001,2953.4,2952.8,0.58047529]
[1765827722948,0.001,2953.4,2952.7,6.77346156]
[1765827722949,0.406504,2953.4,2952.7,6.77346156]
[1765827723123,0.4785,2953.3,2952.7,3.38673078]
[1765827723323,0.7656926,2953.2,2952.9,0.002]
[1765827723522,0.54,2953.1,2952.9,0.002]
[1765827723823,1.0185,2953.1,2952.9,0.002]
[1765827724024,0.4551,2953.0,2952.9,0.002]
[1765827724259,0.9336,2953.0,2952.9,0.002]
[1765827724559,1.4961471,2953.0,2952.9,0.002]
[1765827725460,0.9336,2953.0,2952.9,0.002]
[1765827725765,1.339104,2953.0,2952.9,0.002]
[1765827726272,13.09096501,2953.0,2952.9,0.002]
[1765827726573,12.36552501,2953.0,2952.9,0.002]
[1765827726779,0.405504,2952.6,2951.7,3.38987817]
[1765827727085,0.405504,2952.4,2951.7,0.002]
[1765827727376,0.884004,2952.4,2951.7,0.002]
[1765827727730,4.27116131,2952.4,2951.7,0.002]
[1765827728053,0.48111613,2952.3,2951.7,0.002]
[1765827728260,0.95961613,2952.3,2951.7,0.002]
[1765827728627,0.4785,2952.2,2951.7,0.002]
[1765827728877,0.6377,2951.8,2951.7,0.002]
[1765827729171,1.1777,2951.8,2951.7,0.002]
[1765827729713,2.061704,2951.8,2951.7,0.002]
[1765827729998,0.2061704,2951.8,2951.7,0.4599]
[1765827730172,0.54,2951.8,2951.7,0.002]
[1765827730995,1.4736,2951.8,2951.7,0.002]
[1765827731297,0.9951,2951.8,2951.7,0.002]
[1765827731502,0.54,2951.8,2951.7,0.002]
[1765827731708,0.405504,2952.4,2951.7,0.4599]
[1765827731911,0.54,2952.3,2951.8,6.77552678]
[1765827732063,0.74544793,2952.3,2951.7,3.38986122]
[1765827732269,0.4785,2952.2,2951.7,0.002]
[1765827732802,0.07156489,2952.1,2951.7,0.002]
[1765827733105,0.55006489,2952.1,2951.7,0.002]
[1765827733306,0.55006489,2952.1,2951.7,3.38981101]
[1765827733811,0.55006489,2952.1,2951.7,0.002]
[1765827733997,0.39374392,2952.0,2951.7,0.002]
[1765827734169,0.55006489,2952.1,2951.7,0.002]
[1765827734372,0.4785,2952.0,2951.7,0.002]
[1765827734687,0.1965,2951.9,2951.7,0.002]
[1765827735012,0.9951,2951.8,2951.7,0.002]
[1765827735519,0.54,2951.8,2951.7,0.002]
[1765827735675,0.9951,2951.8,2951.7,0.002]
[1765827737146,0.54,2951.8,2951.7,0.002]
[1765827739178,0.07156489,2952.3,2951.7,0.913]
[1765827739515,0.07156489,2952.5,2952.2,0.6458]
[1765827739718,0.54,2952.4,2952.2,0.1879]
[1765827740033,0.07156489,2952.5,2952.3,0.911]
[1765827740315,0.07156489,2952.5,2952.4,0.4579]
[1765827740490,0.54,2952.6,2952.4,0.4579]
[1765827740688,0.1433,2952.9,2952.2,0.1879]
[1765827740941,0.54,2952.5,2952.3,3.38718964]
[1765827741246,3.45900816,2953.0,2952.3,7.22747928]
[1765827741247,0.07256489,2953.0,2952.3,7.22747928]
[1765827741447,0.07256489,2953.0,2952.7,0.4579]
[1765827741951,0.61156489,2952.8,2952.7,0.4579]
[1765827742323,0.61156489,2952.8,2952.4,0.4531]
[1765827742929,0.61156489,2952.8,2952.7,0.4579]
[1765827743124,0.07256489,2953.0,2952.7,7.23136156]
[1765827743125,0.001,2953.0,2952.7,7.23136156]
[1765827743331,0.001,2953.0,2952.9,0.4579]
[1765827744451,0.001,2953.0,2952.9,0.911]
[1765827745258,0.001,2953.0,2952.9,4.2975014]
[1765827745617,0.001,2953.0,2952.9,4.87797669]
[1765827745829,0.001,2953.0,2952.9,5.70443525]
[1765827746039,0.001,2953.4,2953.0,0.58047529]
[1765827746372,0.001,2953.4,2953.3,0.4579]
[1765827747218,0.001,2953.4,2953.3,3.84394273]
[1765827747460,0.001,2953.4,2953.2,3.38607551]
[1765827747624,0.541,2953.4,2953.3,3.84394273]
[1765827748031,0.541,2953.4,2953.1,3.38623509]
[1765827748219,0.541,2953.4,2953.3,3.38604273]
[1765827748619,1.4746,2953.4,2953.1,3.38621452]
[1765827748819,1.4746,2953.4,2952.5,0.4531]
[1765827748820,0.1033,2953.2,2952.2,0.1879]
[1765827749129,0.405504,2953.3,2952.5,3.38692848]
[1765827749327,0.405504,2953.3,2952.5,4.78706229]
[1765827749530,0.405504,2953.3,2952.5,5.24016229]
[1765827749739,0.405504,2953.3,2952.6,0.4531]
[1765827750116,0.4785,2953.2,2952.4,6.77414984]
[1765827750316,0.405504,2953.1,2952.4,3.38707492]
[1765827751456,0.405504,2953.1,2952.3,3.38718964]
[1765827751658,0.405504,2953.1,2952.3,6.77437928]
[1765827751839,0.001,2953.4,2953.0,0.4724]
[1765827752154,0.001,2953.4,2953.1,0.4724]
[1765827752369,0.001,2953.4,2953.3,0.4724]
[1765827752730,0.001,2953.4,2952.9,0.4911]
[1765827752963,0.54,2953.3,2952.9,0.4911]
[1765827753340,0.4633,2953.0,2952.4,0.58047529]
[1765827753539,0.54,2953.3,2951.7,0.002]
[1765827753540,0.405504,2952.4,2951.7,0.002]
[1765827753785,0.54,2952.3,2951.7,0.002]
[1765827754453,0.54,2952.3,2951.9,3.38756867]
[1765827754975,0.54,2952.3,2951.8,3.38771305]
[1765827755129,0.4633,2952.2,2951.8,3.38771305]
[1765827755331,0.05,2953.1,2952.3,3.38718964]
[1765827755665,0.405504,2952.9,2952.3,3.85958964]
[1765827755986,0.98597929,2952.9,2952.3,3.85958964]
[1765827756275,0.7297,2952.8,2952.2,3.38727817]
[1765827757075,0.405504,2952.6,2952.1,0.002]
[1765827757573,0.4524,2952.5,2952.1,0.002]
[1765827757758,0.405504,2952.7,2952.1,0.002]
[1765827757961,0.96813726,2952.7,2952.1,0.002]
[1765827758841,0.4633,2952.2,2952.1,0.002]
[1765827759056,1.0033,2952.2,2952.1,0.002]
[1765827759263,1.4557,2952.2,2952.1,0.002]
[1765827762027,1.861204,2952.2,2952.1,0.002]
[1765827762198,2.0473244,2952.2,2952.1,0.002]
[1765827762794,2.62779969,2952.2,2952.1,0.002]
[1765827763010,6.01510407,2952.2,2952.1,0.002]
[1765827763827,5.43462878,2952.2,2952.1,0.002]
[1765827764130,2.62779969,2952.2,2952.1,0.002]
[1765827764428,6.06510407,2952.2,2952.1,0.002]
[1765827766901,9.96196707,2952.2,2952.1,0.002]
[1765827767249,8.74130307,2952.2,2952.1,0.002]
[1765827767723,0.455504,2951.8,2951.7,0.002]
[1765827767898,1.129904,2951.8,2951.7,0.002]
[1765827768093,1.77946842,2951.8,2951.7,0.002]
[1765827768630,5.7477071,2951.8,2951.7,0.002]
[1765827769124,5.6977071,2951.8,2951.7,0.002]
[1765827770227,1.95167929,2951.7,2951.0,0.002]
[1765827770400,0.546704,2951.1,2951.0,0.002]
[1765827770601,4.8687772,2951.1,2951.0,0.002]
[1765827770801,0.405504,2951.0,2950.9,0.002]
[1765827771113,1.89847929,2951.0,2950.9,0.002]
[1765827772519,5.28716109,2951.0,2950.9,0.002]
[1765827772827,5.40872598,2951.0,2950.9,0.002]
[1765827773032,6.38896239,2951.0,2950.9,0.002]
[1765827776836,0.405504,2950.6,2950.5,0.002]
[1765827777009,1.16136889,2950.6,2949.8,0.002]
[1765827777210,0.07156489,2950.4,2949.8,0.002]
[1765827777737,0.4633,2949.9,2949.8,0.002]
[1765827778038,1.1512,2949.9,2949.8,0.002]
[1765827778207,2.009104,2949.9,2949.8,0.002]
[1765827778404,2.2100144,2949.9,2949.8,0.002]
[1765827778847,0.455504,2949.4,2949.3,0.002]
[1765827779139,7.18272129,2949.4,2949.3,0.002]
[1765827779712,20.00440029,2949.4,2949.3,0.002]
[1765827779935,8.97588881,2949.4,2949.3,0.002]
[1765827780136,6.96829229,2949.4,2949.3,0.002]
[1765827780335,0.405504,2948.9,2948.5,0.002]
[1765827780537,0.866104,2948.7,2948.5,0.002]
[1765827781237,0.405504,2948.7,2948.5,0.002]
[1765827782363,12.56352888,2948.7,2948.0,0.002]
[1765827782516,0.542104,2948.6,2948.0,0.002]
[1765827782712,0.54,2948.5,2948.0,3.39413025]
[1765827782953,0.54,2948.5,2948.0,0.002]
[1765827783632,0.4948,2948.1,2948.0,0.002]
[1765827783815,1.440304,2948.1,2948.0,0.002]
[1765827784016,1.912404,2948.1,2948.0,0.002]
[1765827784443,0.07156489,2948.3,2948.0,0.002]
[1765827784649,0.54,2948.2,2948.0,0.002]
[1765827785360,0.9669,2948.1,2948.0,0.002]
[1765827786053,1.372404,2948.1,2948.0,0.002]
[1765827787047,1.912404,2948.1,2948.0,0.002]
[1765827787248,0.49894195,2948.2,2948.0,0.002]
[1765827787548,0.54,2948.1,2948.0,0.002]
[1765827787743,1.0348,2948.1,2948.0,0.002]
[1765827787943,1.912404,2948.1,2948.0,0.002]
[1765827788720,0.54,2948.1,2948.0,0.4557]
[1765827789046,0.54,2948.1,2948.0,0.917]
[1765827789242,0.54,2948.1,2948.0,4.30913025]
[1765827789436,0.54,2948.1,2948.0,5.07926712]
[1765827789949,0.54,2948.3,2948.0,11.86352762]
[1765827790160,0.07156489,2948.5,2948.4,0.4537]
[1765827790363,0.07156489,2948.7,2948.4,0.4537]
[1765827790643,0.61156489,2948.7,2948.6,0.4537]
[1765827791043,0.61156489,2948.7,2948.6,0.915]
[1765827791445,0.07156489,2948.7,2948.6,4.30644]
[1765827791646,0.541,2949.3,2948.6,11.85911882]
[1765827791835,0.07156489,2949.4,2948.9,0.4537]
[1765827792038,0.541,2949.2,2948.9,0.4537]
[1765827792231,0.541,2949.2,2949.0,0.4613]
[1765827792429,0.541,2949.2,2949.1,0.4537]
[1765827792654,0.07156489,2949.4,2949.1,0.6364]
[1765827792655,0.541,2949.3,2949.1,0.6364]
[1765827793149,0.541,2949.3,2949.1,0.1827]
[1765827793650,0.541,2949.3,2949.2,4.30575003]
[1765827793837,0.61156489,2949.4,2949.2,3.84445003]
[1765827794148,0.61156489,2949.4,2949.1,3.57354279]
[1765827794149,0.61156489,2949.4,2949.1,3.39077702]
[1765827794445,0.07156489,2949.4,2949.2,3.39074762]
[1765827794651,0.54,2949.3,2949.2,3.39074762]
[1765827795024,0.54,2949.3,2948.8,0.4613]
[1765827795352,0.54,2949.3,2949.1,3.57351463]
[1765827796049,0.54,2949.3,2949.1,0.1827]
[1765827796352,0.54,2949.3,2949.2,0.4537]
[1765827797154,0.54,2949.3,2949.2,0.915]
[1765827797737,0.54,2949.3,2949.2,4.30575003]
[1765827798570,0.541,2949.3,2949.2,3.84445003]
[1765827798737,0.541,2949.3,2949.2,3.39075003]
[1765827798931,1.0358,2949.3,2949.1,3.39081174]
[1765827799130,1.0358,2949.3,2949.2,3.39075003]
[1765827799353,0.541,2949.3,2949.2,3.39075003]
[1765827799849,0.541,2949.3,2949.2,0.4537]
[1765827800250,0.541,2949.3,2949.2,0.915]
[1765827801050,0.541,2949.3,2949.2,0.4537]
[1765827801252,0.541,2949.3,2949.1,0.1827]
[1765827801451,0.541,2949.3,2948.7,6.78260493]
[1765827801622,0.541,2949.3,2948.7,7.50699542]
[1765827801826,0.541,2949.3,2949.2,0.4537]
[1765827802249,0.541,2949.3,2949.2,0.915]
[1765827802655,0.001,2949.3,2949.2,0.915]
[1765827802850,0.541,2949.3,2949.2,0.915]
[1765827803157,0.541,2949.3,2949.2,0.4537]
[1765827803656,1.0358,2949.3,2948.7,6.78260493]
[1765827803824,0.541,2949.3,2948.7,6.78260493]
[1765827804352,0.541,2949.3,2949.2,0.4537]
[1765827805776,0.541,2949.3,2949.2,0.915]
[1765827806069,0.541,2949.3,2949.2,4.30575003]
[1765827806365,0.541,2949.3,2949.2,3.39075003]
[1765827807151,0.541,2949.3,2949.2,3.84445003]
[1765827810555,0.541,2949.3,2949.2,3.39075003]
[1765827810758,1.0218,2949.3,2949.2,3.39075003]
[1765827811263,0.541,2949.3,2949.2,3.39075003]
[1765827811570,0.541,2949.3,2949.2,4.05355003]
[1765827811747,0.541,2949.3,2949.2,4.50565003]
[1765827812635,0.541,2949.3,2949.2,3.87085003]
[1765827813462,0.541,2949.3,2949.2,3.84305003]
[1765827814262,0.541,2949.3,2949.2,4.32195003]
[1765827818963,0.541,2949.3,2949.2,5.11150125]
[1765827821147,0.001,2949.3,2949.2,5.11150125]
[1765827824276,0.455504,2950.0,2949.7,0.4523]
[1765827824458,0.001,2951.0,2949.9,0.4523]
[1765827824651,0.001,2951.0,2950.4,0.6341]
[1765827824853,0.54,2950.7,2950.0,0.1818]
[1765827825088,0.54,2950.7,2950.0,0.6607]
[1765827825587,0.405504,2950.6,2950.1,6.7794312]
[1765827825750,0.405504,2950.6,2950.1,7.2583312]
[1765827826279,0.405504,2950.6,2950.1,6.7794312]
[1765827826979,0.001,2951.0,2950.4,0.4523]
[1765827827350,0.541,2951.0,2950.4,0.9312]
[1765827827777,0.541,2951.0,2950.4,3.84167093]
[1765827828082,0.541,2951.0,2950.4,4.32057093]
[1765827830490,0.001,2951.0,2950.4,5.09157584]
[1765827831189,0.001,2951.0,2950.4,6.21205113]
[1765827831779,0.001,2951.0,2950.5,0.58047529]
[1765827831964,0.001,2951.0,2950.9,9.78811918]
[1765827832170,0.001,2951.0,2950.9,13.71691581]
[1765827832380,0.001,2951.0,2950.9,15.90639791]
[1765827833784,0.001,2951.7,2950.9,29.46158443]
[1765827833991,0.001,2951.7,2951.6,0.6341]
[1765827834402,0.001,2951.7,2951.6,4.50099295]
[1765827836003,0.001,2951.7,2951.6,3.84029295]
[1765827836170,0.9326,2951.7,2951.2,3.38835227]
[1765827836365,0.9326,2951.7,2951.2,0.4789]
[1765827836366,0.4733,2951.7,2951.2,0.4789]
[1765827836566,0.4733,2951.7,2950.8,0.1818]
[1765827836567,0.168,2951.3,2950.4,0.77100491]
[1765827836817,0.168,2951.3,2951.0,3.38864202]
[1765827837285,0.168,2951.3,2951.0,6.77732382]
[1765827837826,0.405504,2951.5,2951.0,6.77732382]
[1765827837984,0.84302871,2951.5,2951.0,3.38864202]
[1765827838185,0.07156489,2951.4,2951.0,3.38864202]
[1765827838413,0.07156489,2951.4,2950.8,3.38887669]
[1765827838704,3.91912083,2951.4,2950.8,3.38887669]
[1765827838885,0.07156489,2951.2,2950.8,3.38887669]
[1765827839083,0.53086489,2951.2,2950.8,3.38887669]
[1765827839391,0.6403,2950.9,2950.4,0.002]
[1765827839600,0.07156489,2951.0,2950.4,0.002]
[1765827840383,0.07156489,2951.0,2950.7,3.38899026]
[1765827840581,0.07156489,2951.0,2950.9,0.4523]
[1765827840890,0.07156489,2951.2,2950.9,0.9312]
[1765827841078,0.07156489,2951.2,2950.6,0.4789]
[1765827841403,0.07156489,2951.2,2950.4,0.002]
[1765827841404,0.47870848,2951.2,2950.4,0.002]
[1765827841720,0.53086489,2951.2,2950.4,0.002]
[1765827842329,3.91932037,2951.2,2950.4,0.002]
[1765827842670,0.53086489,2951.2,2950.4,0.002]
[1765827843719,0.53086489,2951.2,2950.4,0.4928]
[1765827843914,0.07156489,2951.2,2950.4,0.4928]
[1765827844103,0.07156489,2951.2,2950.4,1.55892574]
[1765827844304,0.07156489,2951.2,2950.5,0.4908]
[1765827844499,0.07156489,2951.2,2951.1,0.4814]
[1765827844709,0.07156489,2951.2,2951.1,4.05176697]
[1765827844890,0.07156489,2951.2,2951.1,4.54256697]
[1765827845225,0.07256489,2951.2,2951.1,4.54256697]
[1765827845512,0.001,2951.2,2951.1,4.54256697]
[1765827845807,0.001,2951.2,2951.1,4.05176697]
[1765827847205,0.001,2951.2,2951.1,4.54256697]
[1765827847991,0.001,2951.2,2951.1,4.05176697]
[1765827848197,0.001,2951.2,2951.1,4.54256697]
[1765827849394,0.001,2951.2,2951.1,4.05176697]
[1765827850409,0.001,2951.2,2951.1,4.54256697]
[1765827850586,0.001,2951.2,2951.1,5.3356911]
[1765827850797,0.001,2951.2,2951.1,9.1856911]
[1765827852015,0.481,2951.2,2951.0,3.38868028]
[1765827852184,0.481,2951.2,2951.0,3.38867548]
[1765827852185,0.001,2951.2,2951.0,3.38867548]
[1765827852720,0.001,2951.2,2950.4,0.002]
[1765827852721,0.9534,2951.1,2950.4,0.002]
[1765827853016,0.9534,2951.1,2950.5,3.38925605]
[1765827853017,0.1369,2951.0,2950.5,3.38925605]
[1765827853182,0.6632,2950.9,2950.5,3.38925605]
[1765827853376,0.4671,2950.6,2950.5,3.38925605]
[1765827853790,0.4671,2950.6,2950.4,0.002]
[1765827854103,0.4734,2950.8,2950.4,0.002]
[1765827854501,0.48,2950.5,2950.4,0.002]
[1765827854797,0.54,2950.7,2950.4,0.002]
[1765827854798,0.405504,2950.6,2950.4,0.002]
[1765827855412,0.54496489,2950.8,2950.4,0.002]
[1765827855604,0.945504,2950.7,2950.4,0.002]
[1765827856110,0.54,2950.6,2950.4,0.002]
[1765827856919,0.54,2950.6,2950.5,0.4814]
[1765827857346,0.07156489,2950.8,2950.5,0.4814]
[1765827857619,0.07156489,2950.8,2950.7,0.4814]
[1765827857814,0.07156489,2950.8,2950.7,4.36122633]
[1765827858396,0.07156489,2951.0,2950.7,8.52528882]
[1765827858618,0.07256489,2951.2,2950.9,0.4814]
[1765827858813,0.07256489,2951.2,2951.1,0.6632]
[1765827859218,0.07256489,2951.2,2951.1,1.154]
[1765827859390,0.001,2951.2,2951.1,1.154]
[1765827860024,0.001,2951.2,2951.1,4.54256697]
[1765827860786,0.001,2951.2,2951.1,5.33569119]
[1765827861018,0.001,2951.2,2951.1,5.91616648]
[1765827861801,0.001,2951.7,2951.2,0.58047529]
[1765827862014,0.001,2951.7,2951.6,3.86939295]
[1765827862400,0.001,2951.7,2951.6,4.36019295]
[1765827862620,0.001,2951.7,2951.6,5.18902256]
[1765827866407,0.001,2951.7,2951.6,4.69822256]
[1765827866616,0.001,2951.7,2951.5,3.38804079]
[1765827867010,0.001,2951.7,2951.6,3.38799295]
[1765827867417,0.9544,2951.7,2951.4,3.38816497]
[1765827867623,0.9544,2951.7,2951.3,3.3882835]
[1765827868017,1.12997649,2951.7,2951.4,3.38819372]
[1765827868219,1.12997649,2951.7,2951.3,3.38833186]
[1765827868220,0.17657649,2951.7,2951.3,3.38833186]
[1765827868424,0.001,2951.7,2951.3,6.7766692]
[1765827868727,0.001,2951.7,2951.6,0.4814]